lending/lending_fUSD_20260211
["ID","MTS","AMOUNT","RATE_DAILY","PERIOD"]
[405091828,1770789032592,-368.79128323,0.000176,2]
[405091830,1770789032602,-83641.1910945,0.00017618,2]
[405091832,1770789032612,-3062.2012201,0.00017618,2]
[405091833,1770789032621,-2405.6561976,0.00017618,2]
[405091835,1770789032631,-14195.9168329,0.00017618,2]
[405091837,1770789032640,-1709.14400806,0.0001764,2]
[405091838,1770789032650,-150.99,0.00017728,2]
[405091840,1770789032660,-2500.0,0.00017799,2]
[405091842,1770789032669,-168.47553881,0.000178,2]
[405091844,1770789032679,-2388.75446213,0.0001783,2]
[405091845,1770789032689,-159.4186943,0.00017833,2]
[405091847,1770789032699,-500.0,0.00017873,2]
[405091849,1770789032708,-200.0,0.00017873,2]
[405091851,1770789032718,-358.32105063,0.00017898,2]
[405091853,1770789032728,-143245.6279591,0.00017899,2]
[405091854,1770789032739,-161.74741432,0.000179,2]
[405091856,1770789032748,-1000.0,0.000179,2]
[405091858,1770789032758,-383.687,0.000179,2]
[405091860,1770789032768,-392.15095512,0.000179,2]
[405091862,1770789032780,-168.47553881,0.000179,2]
[405091863,1770789032791,-180.40899046,0.000179,2]
[405091865,1770789032801,-2539.60190755,0.000179,2]
[405091867,1770789032811,-202.43935991,0.000179,3]
[405091869,1770789032822,-71353.73564183,0.000179,2]
[405091871,1770789032831,-1061.08620396,0.000179,2]
[405091873,1770789032841,-152.22654135,0.000179,2]
[405091874,1770789032852,-270.80046435,0.00017973,2]
[405091876,1770789032861,-500.0,0.00017973,2]
[405091878,1770789032871,-500.0,0.00017973,2]
[405091880,1770789032880,-500.0,0.00017973,2]
[405091882,1770789032890,-500.0,0.00017973,2]
[405091883,1770789032899,-500.0,0.00017973,2]
[405091885,1770789032908,-500.0,0.00017973,2]
[405091887,1770789032919,-500.0,0.00017973,2]
[405091888,1770789032928,-225.48317433,0.00017982,2]
[405091889,1770789032938,-188.27841096,0.0001799,2]
[405091890,1770789032947,-337.09225134,0.00017999,2]
[405091891,1770789032958,-300.0,0.00017999,2]
[405091892,1770789032969,-500.0,0.00017999,2]
[405091893,1770789032980,-500.0,0.00017999,2]
[405091894,1770789032992,-500.0,0.00017999,2]
[405091895,1770789033001,-500.0,0.00017999,2]
[405091896,1770789033011,-500.0,0.00017999,2]
[405091897,1770789033020,-500.0,0.00017999,2]
[405091898,1770789033029,-500.0,0.00017999,2]
[405091899,1770789033043,-500.0,0.00017999,2]
[405091900,1770789033052,-500.0,0.00017999,2]
[405091901,1770789033062,-500.0,0.00017999,2]
[405091902,1770789033072,-500.0,0.00017999,2]
[405091903,1770789033082,-504.32682245,0.00017999,2]
[405091904,1770789033093,-255.13891353,0.00017999,2]
[405091905,1770789033103,-168.58061535,0.00017999,2]
[405091906,1770789033114,-11521.0,0.00018,2]
[405091907,1770789033123,-15481.62053175,0.00018,2]
[405091924,1770789040655,-38459.52376384,0.00018,2]
[405091925,1770789040665,-487871.61832707,0.00018,2]
[405091926,1770789040688,-2612.77998446,0.00018,2]
[405091931,1770789045739,-642.20258695,0.00018,2]
[405091932,1770789046176,-69372.15054666,0.00018,2]
[405091933,1770789046236,-365.74626044,0.00018,2]
[405091934,1770789046248,-3792.9879664,0.00018,2]
[405091935,1770789046260,-1014.6,0.00018,2]
[405091936,1770789046272,-270.22,0.00018,2]
[405091979,1770790231320,-176.19,0.000168,2]
[405091980,1770790231329,-200.0,0.00016808,2]
[405091981,1770790231339,-350.0,0.00017237,2]
[405091982,1770790231353,-489.298,0.00017444,2]
[405091983,1770790231362,-162.29867449,0.00017444,2]
[405091984,1770790231372,-217.21555665,0.000175,2]
[405091985,1770790231381,-221.37610742,0.00017534,2]
[405091986,1770790231390,-150.0,0.00017534,2]
[405091987,1770790231400,-154.57727385,0.0001757,2]
[405091988,1770790231409,-700.0,0.00017577,2]
[405091989,1770790231418,-150.0,0.00017589,2]
[405091990,1770790231428,-300.0,0.00017598,2]
[405091991,1770790231438,-1607.08385169,0.00017599,2]
[405091992,1770790231449,-4498.15053756,0.00017599,2]
[405091993,1770790231459,-586.30256694,0.00017599,2]
[405091994,1770790231470,-7734.11901631,0.00017599,2]
[405091995,1770790231480,-1790.6527233,0.00017599,2]
[405091996,1770790231490,-192.09539743,0.00017599,2]
[405091997,1770790231499,-2749.5464937,0.000176,2]
[405091998,1770790231509,-202.43935989,0.000176,3]
[405091999,1770790231518,-577.67253323,0.000176,2]
[405092000,1770790231528,-1942.9349596,0.000176,2]
[405092001,1770790231538,-836.9937967,0.000176,2]
[405092002,1770790231547,-6105.23438921,0.0001763,2]
[405092004,1770790231556,-7734.11901628,0.0001763,2]
[405092006,1770790231565,-1691.11506283,0.0001764,2]
[405092008,1770790231575,-2749.54649366,0.00017643,2]
[405092010,1770790231584,-245.85501438,0.00017644,2]
[405092012,1770790231593,-836.99379667,0.0001766,2]
[405092013,1770790231604,-6105.23438921,0.0001766,2]
[405092014,1770790231613,-7734.11901628,0.0001766,2]
[405092015,1770790231623,-2749.54649366,0.00017686,2]
[405092016,1770790231632,-209.13309471,0.00017689,2]
[405092017,1770790231641,-6105.23438921,0.00017691,2]
[405092018,1770790231650,-265.0,0.00017696,2]
[405092019,1770790231659,-178.59723947,0.00017698,2]
[405092020,1770790231668,-500.0,0.00017698,2]
[405092021,1770790231678,-253.49327048,0.00017698,2]
[405092022,1770790231687,-500.0,0.00017698,2]
[405092023,1770790231697,-500.0,0.00017698,2]
[405092024,1770790231706,-500.0,0.00017698,2]
[405092025,1770790231716,-500.0,0.00017698,2]
[405092026,1770790231726,-500.0,0.00017698,2]
[405092027,1770790231736,-500.0,0.00017698,2]
[405092034,1770790231745,-500.0,0.00017698,2]
[405092035,1770790232012,-327.05308505,0.00017698,2]
[405092036,1770790232023,-500.0,0.00017698,2]
[405092037,1770790232034,-353.02877571,0.00017698,2]
[405092038,1770790232043,-500.0,0.00017698,2]
[405092039,1770790232053,-500.0,0.00017698,2]
[405092040,1770790232063,-500.0,0.00017698,2]
[405092041,1770790232072,-500.0,0.00017698,2]
[405092042,1770790232082,-500.0,0.00017698,2]
[405092043,1770790232095,-491.17729677,0.00017698,2]
[405092044,1770790232108,-636445.1972307,0.00017699,2]
[405092045,1770790232125,-1254.41808677,0.00017699,2]
[405092067,1770790239565,-778.26815199,0.00017691,2]
[405092068,1770790239578,-351.25743895,0.00017691,2]
[405092069,1770790239628,-420.99270416,0.00017691,2]
[405092070,1770790239639,-2425.33,0.00017691,2]
[405092071,1770790239914,-3758.27072118,0.00017691,2]
[405092072,1770790239924,-227.0,0.00017694,2]
[405092073,1770790239934,-500.0,0.00017698,2]
[405092074,1770790239943,-504.73417313,0.00017698,2]
[405092075,1770790239953,-2446319.02224866,0.00017699,2]
[405092081,1770790243376,-856.78120213,0.00017699,2]
[405092082,1770790243436,-5383.72504302,0.00017699,2]
[405092083,1770790244546,-554.47694596,0.00017699,2]
[405092086,1770790245491,-269.34,0.00017699,2]
[405092088,1770790245658,-967.388667,0.00017699,2]
[405092089,1770790245670,-981.91213787,0.00017699,2]
[405092091,1770790294441,-200.0,0.000153,5]
[405092092,1770790297069,-200.0,0.000153,5]
[405092096,1770790615479,-200.0,0.000147,5]
[405092097,1770790616877,-200.0,0.000147,5]
[405092098,1770790687840,-200.0,0.000146,5]
[405092099,1770790741995,-200.0,0.000145,5]
[405092100,1770790745123,-300.0,0.000145,5]
[405092101,1770790932842,347.5833,0.00022,120]
[405092102,1770790941884,300.0,0.0002,30]
[405092103,1770791026466,334.28,9.84e-05,2]
[405092104,1770791026634,334.28,0.00010186,2]
[405092105,1770791026821,334.28,0.00010531,2]
[405092106,1770791027018,334.28,0.00010876,2]
[405092107,1770791027211,334.28,0.00011222,2]
[405092108,1770791027418,334.28,0.00011567,2]
[405092109,1770791027607,334.28,0.00011912,2]
[405092162,1770791431513,-334.28,0.00012257,2]
[405092164,1770791431523,-113.386219,0.00012603,2]
[405092166,1770791431536,-220.893781,0.00012603,2]
[405092168,1770791431547,-334.28,0.00012948,2]
[405092169,1770791431556,-334.28,0.00013293,2]
[405092170,1770791431567,-176.30760538,0.00013483,2]
[405092171,1770791431580,-198.29178618,0.00013483,2]
[405092172,1770791431589,-176.83621374,0.00013639,2]
[405092173,1770791431605,-157.44378626,0.00013639,2]
[405092174,1770791431615,-334.28,0.00013984,2]
[405092175,1770791431624,-343.88439228,0.00013991,2]
[405092176,1770791431668,-501.0,0.00013991,2]
[405092177,1770791431679,-355.11560772,0.00013991,2]
[405092178,1770791431688,-151.0,0.00013992,2]
[405092179,1770791431698,-27.23079627,0.00013992,2]
[405092180,1770791431732,-123.76920373,0.00013992,2]
[405092181,1770791431741,-151.0,0.00013992,2]
[405092182,1770791431750,-151.0,0.00013992,2]
[405092183,1770791431760,-151.0,0.00013992,2]
[405092184,1770791431770,-151.0,0.00013992,2]
[405092185,1770791431780,-169.49410949,0.00013992,2]
[405092186,1770791431796,-515.99140305,0.00014,2]
[405092188,1770791431807,-657.58326595,0.00014,2]
[405092190,1770791431820,-570.03114585,0.00014,2]
[405092195,1770791431860,-522.90611704,0.00014,2]
[405092197,1770791431872,-343.01153381,0.00014,2]
[405092200,1770791431890,-7390.4765343,0.00014,2]
[405092202,1770791431900,-176.19,0.000142,2]
[405092204,1770791431910,-334.28,0.00014329,2]
[405092205,1770791431919,-334.28,0.00014674,2]
[405092207,1770791431928,-250.0,0.00015,2]
[405092208,1770791431937,-334.28,0.0001502,2]
[405092210,1770791431946,-250.0,0.00015286,2]
[405092212,1770791431956,-334.28,0.00015365,2]
[405092214,1770791431966,-1151.0,0.0001539,2]
[405092216,1770791431975,-166.66,0.00015684,2]
[405092218,1770791431985,-893.97,0.00015696,2]
[405092220,1770791431994,-334.28,0.0001571,2]
[405092222,1770791432005,-1852.42,0.00015742,2]
[405092224,1770791432014,-322.46,0.00015784,2]
[405092225,1770791432023,-500.0,0.00015784,2]
[405092226,1770791432033,-1551.74,0.00015856,2]
[405092227,1770791432043,-300.0,0.00015963,2]
[405092228,1770791432052,-209.493016,0.00015963,7]
[405092229,1770791432062,-257.447609,0.00016,2]
[405092230,1770791432071,-166.66,0.00016014,2]
[405092231,1770791432081,-334.28,0.00016056,2]
[405092232,1770791432090,-3471.0,0.000162,2]
[405092233,1770791432100,-200.0,0.00016338,2]
[405092234,1770791432110,-166.66,0.00016344,2]
[405092235,1770791432124,-5530.0,0.000164,3]
[405092237,1770791432141,-334.28,0.00016401,2]
[405092238,1770791432155,-1736.56,0.00016592,2]
[405092239,1770791432166,-166.66,0.00016674,2]
[405092240,1770791432181,-5530.0,0.000167,5]
[405092241,1770791432195,-6661.3,0.00016783,2]
[405092242,1770791432210,-175.94,0.00016803,2]
[405092243,1770791432224,-174.24,0.00016848,2]
[405092244,1770791432238,-166.66,0.00017005,2]
[405092245,1770791432252,-277.35679052,0.00017099,2]
[405092246,1770791432265,-166.66,0.00017335,2]
[405092247,1770791432280,-150.0,0.00017385,2]
[405092248,1770791432294,-206.85979037,0.00017385,2]
[405092249,1770791432309,-264.27814035,0.00017412,2]
[405092250,1770791432323,-1736.56,0.00017421,2]
[405092251,1770791432338,-192.86451404,0.0001744,2]
[405092252,1770791432353,-1605.3759,0.00017493,2]
[405092253,1770791432368,-72403.8968,0.00017499,2]
[405092254,1770791432381,-1275.39079215,0.000175,5]
[405092255,1770791432394,-500.0,0.000175,2]
[405092256,1770791432407,-500.0,0.000175,2]
[405092257,1770791432420,-500.0,0.000175,2]
[405092258,1770791432435,-500.0,0.000175,2]
[405092259,1770791432447,-500.0,0.000175,2]
[405092260,1770791432460,-172.65144793,0.000175,2]
[405092261,1770791432470,-405.0,0.0001751,2]
[405092262,1770791432482,-264.27814034,0.00017534,2]
[405092263,1770791432497,-309.71991093,0.00017598,2]
[405092264,1770791432512,-2482.72759914,0.00017598,2]
[405092265,1770791432522,-500.0,0.00017598,2]
[405092266,1770791432533,-500.0,0.00017598,2]
[405092267,1770791432545,-500.0,0.00017598,2]
[405092268,1770791432560,-500.0,0.00017598,2]
[405092269,1770791432573,-500.0,0.00017598,2]
[405092270,1770791432584,-500.0,0.00017598,2]
[405092271,1770791432596,-521.59178718,0.00017598,2]
[405092272,1770791432608,-1000.0,0.00017599,2]
[405092273,1770791432624,-1495.20052464,0.0001764,2]
[405092274,1770791432636,-2482.72759914,0.00017641,2]
[405092275,1770791432649,-360.73581248,0.00017647,2]
[405092276,1770791432661,-264.27814034,0.00017656,2]
[405092277,1770791432674,-405.0,0.00017656,2]
[405092278,1770791432686,-405.0,0.00017659,2]
[405092279,1770791432699,-2500.0,0.00017678,2]
[405092280,1770791432711,-2482.72759914,0.00017684,2]
[405092281,1770791432723,-1201.85190849,0.00017691,2]
[405092282,1770791432736,-151.0,0.00017695,2]
[405092283,1770791432748,-500.0,0.00017696,2]
[405092284,1770791432761,-95865.6784717,0.00017697,2]
[405092285,1770791432781,-3779.1944335,0.00017698,2]
[405092286,1770791432793,-968.5775696,0.00017698,2]
[405092287,1770791432805,-49136.9221137,0.00017698,2]
[405092288,1770791432818,-2884.3608227,0.00017698,2]
[405092289,1770791432830,-500.0,0.00017698,2]
[405092290,1770791432844,-500.0,0.00017698,3]
[405092291,1770791432857,-500.0,0.00017698,4]
[405092292,1770791432869,-500.0,0.00017698,5]
[405092293,1770791432881,-500.0,0.00017698,6]
[405092294,1770791432894,-500.0,0.00017698,7]
[405092295,1770791432906,-576.866013,0.00017698,8]
[405092296,1770791432918,-212.7,0.00017698,2]
[405092297,1770791432930,-5038.44519075,0.00017699,2]
[405092298,1770791432943,-5038.44519071,0.00017721,2]
[405092299,1770791432956,-491.0,0.00017727,2]
[405092300,1770791432969,-2482.72759914,0.00017727,2]
[405092301,1770791432981,-405.0,0.00017731,2]
[405092302,1770791432993,-5038.44519071,0.00017744,2]
[405092303,1770791433005,-724.85,0.00017752,2]
[405092304,1770791433019,-5038.44519071,0.00017766,2]
[405092305,1770791433031,-2482.72759914,0.00017771,2]
[405092306,1770791433044,-264.27814034,0.00017778,2]
[405092307,1770791433056,-5038.44519071,0.00017788,2]
[405092308,1770791433068,-42939.34774597,0.00017799,2]
[405092309,1770791433082,-500.0,0.00017799,2]
[405092310,1770791433094,-5038.44519071,0.00017811,2]
[405092311,1770791433107,-2482.72759914,0.00017814,2]
[405092312,1770791433120,-5038.44519071,0.00017833,2]
[405092313,1770791433133,-5038.44519071,0.00017855,2]
[405092314,1770791433144,-2482.72759914,0.00017857,2]
[405092315,1770791433157,-500.0,0.00017873,2]
[405092316,1770791433170,-5038.44519071,0.00017878,2]
[405092317,1770791433184,-749.539,0.00017898,2]
[405092318,1770791433196,-504.73417313,0.00017899,2]
[405092319,1770791433210,-264.27814034,0.000179,2]
[405092320,1770791433224,-25000.0,0.000179,3]
[405092321,1770791433239,-1019.44612289,0.000179,2]
[405092322,1770791433252,-5038.44519071,0.000179,2]
[405092323,1770791433264,-2482.72759914,0.000179,2]
[405092324,1770791433276,-276.51322199,0.000179,2]
[405092325,1770791433289,-567.9035499,0.000179,2]
[405092326,1770791433302,-6645.3555,0.000179,2]
[405092327,1770791433314,-192.09539743,0.000179,2]
[405092328,1770791433327,-2012.0,0.000179,2]
[405092329,1770791433340,-500.0,0.000179,2]
[405092330,1770791433353,-500.0,0.000179,2]
[405092331,1770791433365,-500.0,0.000179,2]
[405092332,1770791433378,-500.0,0.000179,2]
[405092333,1770791433391,-500.0,0.000179,2]
[405092334,1770791433403,-500.0,0.000179,2]
[405092335,1770791433416,-500.0,0.000179,2]
[405092336,1770791433428,-500.0,0.000179,2]
[405092337,1770791433441,-500.0,0.000179,2]
[405092338,1770791433453,-500.0,0.000179,2]
[405092339,1770791433466,-14024.0,0.00017962,2]
[405092340,1770791433479,-151.0,0.00017962,2]
[405092341,1770791433491,-150.887,0.00017965,2]
[405092342,1770791433507,-1287.954,0.00017965,2]
[405092343,1770791433519,-923.406,0.00017965,2]
[405092344,1770791433532,-1218.499,0.00017965,2]
[405092345,1770791433543,-5966.0,0.00017965,2]
[405092346,1770791433556,-622.018,0.00017965,2]
[405092347,1770791433569,-277.78495624,0.00017973,2]
[405092348,1770791433581,-500.0,0.00017973,2]
[405092349,1770791433593,-500.0,0.00017973,2]
[405092350,1770791433606,-500.0,0.00017973,2]
[405092351,1770791433619,-500.0,0.00017973,2]
[405092352,1770791433632,-161.48732342,0.00017973,2]
[405092353,1770791433644,-500.0,0.00017973,2]
[405092354,1770791433657,-285.00906658,0.00017973,2]
[405092355,1770791433670,-502.33406416,0.00017973,2]
[405092356,1770791433682,-377.4614152,0.00017973,2]
[405092357,1770791433694,-500.0,0.00017973,2]
[405092358,1770791433706,-500.0,0.00017973,2]
[405092359,1770791433719,-170.31002871,0.00017973,2]
[405092360,1770791433731,-191.55531114,0.00017973,2]
[405092361,1770791433744,-578.39927052,0.00017973,2]
[405092362,1770791433756,-6568.4227748,0.00017974,2]
[405092363,1770791433769,-177.01848,0.00017974,2]
[405092364,1770791433782,-177.01848,0.00017974,2]
[405092365,1770791433794,-177.01848,0.00017974,2]
[405092366,1770791433806,-177.01848,0.00017974,2]
[405092367,1770791433818,-300.0,0.00017975,2]
[405092368,1770791433831,-151.0,0.00017997,2]
[405092369,1770791433843,-302.372,0.00017999,2]
[405092370,1770791433855,-527.44528934,0.00017999,2]
[405092371,1770791433868,-500.0,0.00017999,2]
[405092372,1770791433879,-223.57921029,0.00017999,2]
[405092373,1770791433891,-247.120143,0.00017999,2]
[405092374,1770791433903,-4474.28569985,0.00018,2]
[405092375,1770791433920,-231156.75232914,0.00018,2]
[405092376,1770791433935,-187229.78638816,0.00018,2]
[405092377,1770791433952,-170754.31285588,0.00018,2]
[405092381,1770791437603,-277.29831803,0.00017973,2]
[405092382,1770791437619,-222.70168197,0.00017973,2]
[405092383,1770791437628,-1353.27320417,0.00018,2]
[405092384,1770791437639,-521.1,0.00018,2]
[405092385,1770791437669,-493.17330366,0.00018,2]
[405092386,1770791437681,-4103.70418251,0.00018,2]
[405092387,1770791437736,-66999.99999995,0.00018,2]
[405092388,1770791437747,-5263.42639381,0.00018,2]
[405092389,1770791437810,-352.2251544,0.00018,2]
[405092390,1770791437821,-583.72879,0.00018,2]
[405092391,1770791437832,-13649.86479778,0.00018,2]
[405092563,1770791439674,-729.9502961,0.000179,2]
[405092564,1770791439685,-4037.48076418,0.000179,2]
[405092566,1770791439695,-3499.133,0.00017965,2]
[405092568,1770791439704,-59347.58908421,0.00018,2]
[405092571,1770791439718,-784561.49379333,0.00018,2]
[405092573,1770791439727,-150.0,0.00018,2]
[405092575,1770791439737,-4685.51599946,0.00018,2]
[405092577,1770791439746,-150.0,0.00018,2]
[405092579,1770791439755,-11392.07976116,0.00018,2]
[405092581,1770791439765,-150.0,0.00018,2]
[405092583,1770791439773,-3455.79897219,0.00018,2]
[405092585,1770791439784,-150.0,0.00018,2]
[405092587,1770791439793,-153.4566854,0.00018,2]
[405092589,1770791439803,-1688735.19627283,0.00018,2]
[405092591,1770791439814,-100332.0,0.00018,2]
[405092594,1770791439837,-1675.0,0.00018,2]
[405092596,1770791439848,-314.27349996,0.00018,2]
[405092598,1770791439859,-670.635,0.00018,2]
[405092601,1770791439870,-418.54789703,0.00018,2]
[405093081,1770791444908,-1516.70776166,0.000179,2]
[405093082,1770791444918,-143.58963834,0.00018,2]
[405093084,1770791444930,-31312.1621874,0.00018,2]
[405093125,1770791445478,-602.0573013,0.00018,2]
[405093141,1770791445764,-9730.00000024,0.00018,2]
[405093143,1770791445776,-327.41395545,0.00018,2]
[405093251,1770791936006,393.11,1.15e-06,2]
[405093252,1770791937017,245.69,1.21e-06,2]
[405093253,1770791937399,196.56,1.22e-06,2]
[405093266,1770792439065,478.2,0.00012198,2]
[405093502,1770792631681,-279.79428379,0.00014296,2]
[405093503,1770792631695,-2935.86868876,0.00014296,2]
[405093504,1770792631759,-776.94702745,0.00014296,2]
[405093505,1770792631769,-253.22,0.000143,2]
[405093506,1770792631779,-1104.84297255,0.00015765,2]
[405093507,1770792631790,-1267.23702745,0.00015765,2]
[405093508,1770792631800,-150.0,0.00015923,2]
[405093509,1770792631810,-176.42267134,0.00016022,2]
[405093510,1770792631868,-23.57732866,0.00016022,2]
[405093511,1770792631878,-1200.0,0.00016026,2]
[405093512,1770792631887,-1844.16,0.00016027,2]
[405093513,1770792631897,-251.42,0.00016048,2]
[405093514,1770792631908,-500.0,0.00016492,3]
[405093515,1770792631919,-300.0,0.00016494,2]
[405093516,1770792631930,-183.0,0.00016495,2]
[405093517,1770792631940,-133289.69,0.00016496,2]
[405093518,1770792631949,-3566.41983359,0.00016515,2]
[405093519,1770792631958,-795.004846,0.00016559,2]
[405093520,1770792637780,-1154.38291172,0.00016558,2]
[405093521,1770792637845,-332.54369324,0.00016558,2]
[405093522,1770792637860,-5896.01352107,0.00016558,2]
[405093523,1770792637870,-83628.95481122,0.00016559,2]
[405093524,1770792637882,-1064.40417485,0.00016559,2]
[405093525,1770792637911,-110758.52712505,0.00016559,2]
[405093547,1770792639864,-254.35801595,0.00016559,2]
[405093548,1770792640059,-3303498.75102693,0.00016559,2]
[405093549,1770792640068,-5111.81249496,0.00016615,2]
[405093550,1770792640079,-2500.0,0.00016643,2]
[405093551,1770792640089,-1709.80125327,0.00016643,2]
[405093552,1770792640099,-4442.97361827,0.00016658,2]
[405093553,1770792640109,-566.26610313,0.00016658,2]
[405093554,1770792640119,-1043.72420061,0.00016659,2]
[405093555,1770792640128,-306.76467408,0.00016659,2]
[405093556,1770792640140,-153.13440166,0.00016715,2]
[405093557,1770792640150,-151.0,0.0001674,2]
[405093558,1770792640161,-369.21170254,0.00016742,2]
[405093559,1770792640171,-172.9841001,0.00016742,2]
[405093560,1770792640181,-500.0,0.00016742,2]
[405093561,1770792640191,-593.82410773,0.00016742,2]
[405093562,1770792640202,-500.0,0.00016742,2]
[405093563,1770792640212,-500.0,0.00016742,2]
[405093564,1770792640222,-263.78695805,0.00016742,2]
[405093565,1770792640232,-5111.81249494,0.00016758,2]
[405093566,1770792640241,-1798.73,0.00016759,2]
[405093567,1770792640252,-3566.41983356,0.00016792,2]
[405093568,1770792640262,-1043.72420052,0.00016797,2]
[405093570,1770792640271,-325.28,0.00016826,2]
[405093571,1770792640280,-566.26610307,0.00016835,2]
[405093572,1770792640290,-3240.0,0.00016843,2]
[405093573,1770792640299,-5111.81249494,0.00016901,2]
[405093574,1770792640312,-7446.19,0.00016911,2]
[405093575,1770792640330,-1043.72420052,0.00016935,2]
[405093576,1770792640347,-1000.0,0.00016985,2]
[405093577,1770792640368,-566.26610307,0.00017013,2]
[405093578,1770792640383,-5111.81249494,0.00017043,2]
[405093579,1770792640397,-3566.41983356,0.00017069,2]
[405093580,1770792640411,-1043.72420052,0.00017073,2]
[405093581,1770792640426,-398.0,0.00017128,2]
[405093582,1770792640440,-5111.81249494,0.00017186,2]
[405093583,1770792640453,-566.26610307,0.0001719,2]
[405093584,1770792640464,-500.0,0.0001719,2]
[405093585,1770792640479,-6733.1643,0.00017199,2]
[405093586,1770792640492,-1043.72420052,0.00017211,2]
[405093587,1770792640511,-398.0,0.00017257,2]
[405093588,1770792640525,-230.0,0.00017277,2]
[405093589,1770792640538,-250.0,0.00017289,2]
[405093590,1770792640553,-305.25372626,0.00017289,2]
[405093591,1770792640567,-255.66159154,0.00017289,2]
[405093592,1770792640580,-629.1569637,0.00017289,2]
[405093593,1770792640593,-250.0,0.00017289,2]
[405093594,1770792640605,-257.01371898,0.00017289,2]
[405093595,1770792640619,-500.0,0.00017289,2]
[405093596,1770792640635,-535.6068796,0.00017289,2]
[405093597,1770792640649,-323.26075896,0.00017289,2]
[405093598,1770792640662,-599.631,0.00017296,2]
[405093599,1770792640675,-500.0,0.00017299,2]
[405093600,1770792640686,-487.0,0.00017299,2]
[405093601,1770792640698,-487.0,0.00017299,2]
[405093602,1770792640714,-487.0,0.00017299,2]
[405093603,1770792640726,-487.0,0.00017299,2]
[405093604,1770792640737,-487.0,0.00017299,2]
[405093605,1770792640749,-487.0,0.00017299,2]
[405093606,1770792640762,-487.0,0.00017299,2]
[405093607,1770792640776,-487.0,0.00017299,2]
[405093608,1770792640788,-487.0,0.00017299,2]
[405093609,1770792640800,-487.0,0.00017299,2]
[405093610,1770792640811,-487.0,0.00017299,2]
[405093611,1770792640824,-487.0,0.00017299,2]
[405093612,1770792640841,-487.0,0.00017299,2]
[405093613,1770792640855,-487.0,0.00017299,2]
[405093614,1770792640867,-487.0,0.00017299,2]
[405093615,1770792640880,-487.0,0.00017299,2]
[405093616,1770792640892,-487.0,0.00017299,2]
[405093617,1770792640905,-487.0,0.00017299,2]
[405093618,1770792640916,-601.15,0.00017299,2]
[405093619,1770792640929,-5111.81249494,0.00017329,2]
[405093620,1770792640941,-3566.41983356,0.00017346,2]
[405093621,1770792640953,-1043.72420052,0.00017348,2]
[405093622,1770792640965,-168.0,0.00017352,2]
[405093623,1770792640977,-566.26610307,0.00017368,2]
[405093624,1770792640989,-500.0,0.0001737,2]
[405093625,1770792641001,-166.67,0.0001738,2]
[405093626,1770792641013,-168.0,0.00017387,2]
[405093627,1770792641024,-10617.41,0.00017399,2]
[405093628,1770792641037,-168.81,0.000174,2]
[405093629,1770792641048,-238.0,0.00017416,2]
[405093630,1770792641061,-500.0,0.00017425,2]
[405093631,1770792641073,-500.0,0.00017464,2]
[405093632,1770792641085,-5111.81249494,0.00017472,2]
[405093633,1770792641099,-309.390678,0.0001748,2]
[405093634,1770792641110,-1043.72420052,0.00017486,2]
[405093635,1770792641122,-238.0,0.00017508,2]
[405093636,1770792641133,-566.26610307,0.00017545,2]
[405093637,1770792641146,-278.0,0.0001758,2]
[405093638,1770792641158,-1000.0,0.00017597,2]
[405093639,1770792641171,-5111.81249494,0.00017614,2]
[405093640,1770792641183,-3566.41983356,0.00017623,2]
[405093641,1770792641195,-1043.72420052,0.00017624,2]